{"text_format":"1","workbook":"xlsx","n_sheets":4,"sheets":["Vejledning","Lønseddel","Løn inkl. alle tillæg","Tillæg"],"not_rendered":{"charts":0,"images":0,"macros":1,"external_links":0,"defined_names":0,"comments":1,"pivot_tables":0},"unopened":[],"bounds":{"document_bytes":16777216,"sheet_cells":100000,"rows_first":2000,"rows_last":500,"rows_between":2000,"halvings":0,"cell_chars":16384,"cell_head_chars":4096},"cells_cut":0,"cells_raw":0,"read":"whole","date_system":"1900"}

{"sheet":"Vejledning","index":0,"n_rows":8,"n_cols":2,"rows_kept":8,"cut":false,"hidden":false,"merged":[]}
["Fane navn","Forklaring"]
["Kender lønnen","Benyttes hvis du kender bruttobeløbet, og vil kontrollere om Feriepenge-, SH/FF- og pensionbeløbet er korrekt.\nFelterne kender timerne og kender lønnen, giver et rettesnor for indtjeningen."]
["Kender Pensionsbeløbet","Her beregnes \"baglæns\" fra et brutto pensionsbeløb."]
["Kender Feriepengebeløbet","Her beregnes \"baglæns\" fra et brutto feriepengebeløb."]
["Kender SH og FF beløbet","Her beregnes \"baglæns\" fra et brutto SH og FFbeløb."]
["Kender Feriepenge, SH og FF","Her beregnes \"baglæns\" fra et brutto feriepenge-, SH-, og FFbeløb."]
["Kender nettobeløbet","Her beregnes \"baglæns\" fra et nettobeløb, det forudsætter at man kender trækprocent og lønmodtagerfradrag."]
["Arbejdsdagsberegner","Denne benyttet til at beregne antal arbejdsdage i en defineret periode mellem  2 datoer, og derefter modregne afholdt ferie og feriefridage, Og udfra den oplyste timeløn at beregne løn, feriepenge, SH og feriefridagsgodtgørelse samt pension i den definerede periode.."]

{"sheet":"Lønseddel","index":1,"n_rows":48,"n_cols":5,"rows_kept":48,"cut":false,"hidden":false,"merged":[]}
[null,"Enheder",null,"Sats","I alt"]
["Løn",66.5,null,275,{"$f":"SUM(B2*D2)","v":18287.5}]
[]
["Akkordoverskud",1,null,9500,{"$f":"SUM(B4*D4)","v":9500}]
[]
["Overarbejde med 50% tillæg",8,0.5,{"$f":"SUM($D$2*C6)","v":137.5},{"$f":"SUM(B6*D6)","v":1100}]
["Overarbejde med 100% tillæg",12,1,{"$f":"SUM($D$2*C7)","v":275},{"$f":"SUM(B7*D7)","v":3300}]
[]
["Sygeløn",7.5,null,133,{"$f":"SUM(B9*D9)","v":997.5}]
[]
["Skurpenge",3,null,57.5,{"$f":"SUM(B11*D11)","v":172.5}]
["Skurpenge",2,null,90,{"$f":"SUM(B12*D12)","v":180}]
[]
["Køretid",225,null,0.75,{"$f":"SUM(B14*D14)","v":168.75}]
[]
["Skattepligtige kørepenge *",100,null,2.1,{"$f":"SUM(B16*D16)","v":210}]
[]
[null,"Sats"]
["Ferieberettiget løn i alt",null,{"$f":"SUM(E2:E14)","v":33706.25},null,{"$f":"SUM(E2:E16)","v":33916.25}]
[]
["Feriepenge",0.125,{"$f":"SUM(C19*B21)","v":4213.28125}]
[]
["SH-, og Feriefridagsgodtgørelse",6.9000000000000006E-2,{"$f":"SUM(C19*B23)","v":2325.7312500000003}]
[]
["Pensionsgrundlag",null,{"$f":"SUM(C19:C23)+E16","v":40455.262499999997}]
[]
["Pension - Virksomhed",8.1500000000000003E-2,{"$f":"SUM(C25*B27)","v":3297.1038937499998}]
[]
["Pension - Medarbejder",0.04,{"$f":"SUM(C25*B29)","v":1618.2104999999999},null,{"$f":"-SUM(C29)","v":-1618.2104999999999}]
[]
["ATP - Medarbejder",null,null,null,-90]
[null,null,"Sats"]
["Arbejdsmarkeds bidragspligtigt beløb",{"$f":"SUM(E19:E31)","v":32208.039499999999},0.08,null,{"$f":"-SUM(B33*C33)","v":-2576.6431600000001}]
[]
["G-dage",3,null,788,{"$f":"SUM(B35*D35)","v":2364}]
[]
["Skattefradrag",-7500,null,{"$f":"SUM(B33,E33,E35)","v":31995.396339999999}]
[]
["A-Skat",null,0.42,{"$f":"SUM(B37:D37)","v":24495.396339999999},{"$f":"-SUM(D39*C39)","v":-10288.066462799999}]
[]
[null,"Enheder",null,"Sats"]
["Skattefrie kørepenge",100,null,2.1,{"$f":"SUM(B42*D42)","v":210}]
[]
["Skattefrie Diæter",3,null,275,{"$f":"SUM(B44*D44)","v":825}]
[]
["Til udbetaling",null,null,null,{"$f":"SUM(E19:E42)","v":21917.329877199998}]
[]
["* Skattepligtige kørepenge er pensionsberettigede, men ikke Ferie og SH berettigede."]

{"sheet":"Løn inkl. alle tillæg","index":2,"n_rows":36,"n_cols":6,"rows_kept":36,"cut":false,"hidden":false,"merged":[[2,0,3,4],[16,15,17,19],[26,0,27,4],[41,3,42,7]]}
[]
["Lønnen er inkl. alle de overenskomstmæssige tillæg"]
["Gennemsnitslønnen fra det nationale websted www.workplacedenmark.dk for det pågældende arbejde i den pågældende region. (Eller den aftalte løn jf. §2), indsættes i kr. her:"]
[]
[null,null,null,"Pension",0.10150000000000001]
[null,null,null,"Løn eskl. pension",null,{"$f":"F4/(1+SUM(E5))","v":0}]
[null,null,null,"SH",0.13]
[null,null,null,"Feriepenge",0.125]
["Grundtimelønnen eksl. feriepenge, SH og pension udgør kr.:",null,null,null,{"$f":"F6/(1+SUM(E7,E8))","v":0}]
[]
["Denne løn er medarbejederns grundtimeløn, som skal udbetales ved hver lønperiode afslutning."]
[]
["Er der overarbejde eller andre variable tillæg, skal disse tillægges grundtimelønnen."]
["Variable arbejdstidstillæg"]
[null,"Enheder","Sats"]
["Antal timer",null,{"$f":"ROUND(E9,2)","v":0},null,null,{"$f":"C16*B16","v":0}]
["Smudstillæg",null,10.5,null,null,{"$f":"C17*B17","v":0}]
["Tillæg ved skiftende arbejdssteder",null,63.8,null,null,{"$f":"C18*B18","v":0}]
["Overarbejde 1-2 timer",null,43.25,null,null,0]
["Overarbejde over 2 timer",null,121.25,null,null,0]
["Forskudt tid 18-22",null,24.05,null,null,0]
["Forskudt tid 22-06",null,47.25,null,null,0]
["Tillæg for rejsearbejde (Afstand i km)",null,{"$f":"IF(B23<7,Tillæg!C2,IF(B23<10.001,Tillæg!B2,IF(B23<13.001,Tillæg!B3,IF(B23<16.001,Tillæg!B4,IF(B23<20.001,Tillæg!B5,IF(B23<25.001,Tillæg!B6,IF(B23<30.001,Tillæg!B7,IF(B23<35.001,Tillæg!B8,IF(B23<40.001,Tillæg!B9,IF(B23<45.001,Tillæg!B10,IF(B23<50.001,Tillæg!B11,IF(B23<55.001,Tillæg!B12,IF(B23<60.001,Tillæg!B13,IF(B23<65.001,Tillæg!B14,IF(B23<70.001,Tillæg!B15,IF(B23<75.001,Tillæg!B16,IF(B23>75.001,Tillæg!B17,)))))))))))))))))","v":0},null,null,{"$f":"(B16-B19-B20)*C23","v":0}]
[]
["Brutto betaling inkl. variable arbejdstidstillæg"]
[]
["Medarbejderens samlede bruttobetaling inkl. variable arbejdstidstillæg (f.eks forskudtid, overarbejde) for den pågældende lønperiode, indsættes i kr. her:"]
[null,null,null,null,null,{"$f":"SUM(F16:F23)","v":0}]
[]
[]
["Feriepengene udgør af periodens bruttobetaling kr.:",null,null,null,{"$f":"SUM($E$8)","v":0.125},{"$f":"SUM(F28*E31)","v":0}]
["Søgnehelligdagsbetalingen udgør af periodens bruttobetaling kr.:",null,null,null,{"$f":"SUM($E$7)","v":0.13},{"$f":"SUM(F28*E32)","v":0}]
["Pensionsgrundlag kr.:",null,null,null,{"$f":"SUM(F28+F31+F32)","v":0}]
["Pensionen udgør af periodens bruttobetaling kr.:",null,null,null,{"$f":"SUM($E$5)","v":0.10150000000000001},{"$f":"SUM(E33*E34)","v":0}]
[]
[null,null,null,"Opsat løn der skal udbetales til medarbejder",{"$f":"SUM(F28+F31+F32+F34)","v":0},"kr."]

{"sheet":"Tillæg","index":3,"n_rows":26,"n_cols":2,"rows_kept":26,"cut":false,"hidden":false,"merged":[]}
["KM",2023]
[7,10.1]
[10,14.1]
[13,17.95]
[16,23.35]
[20,29.45]
[25,34.200000000000003]
[30,37.450000000000003]
[35,39.65]
[40,43]
[45,47.15]
[50,50.95]
[55,55.05]
[60,59.15]
[65,63.15]
[70,67.2]
["75+",90.25]
[]
["Satser pr. 01.03.2022"]
["Svend:","Sats"]
["Smuds",10.050000000000001]
["Skift. Arb.",61.05]
["OA 1-2",41.8]
["OA 2+",117.15]
["Forskudt tid 18-22",23]
["Forskudt tid 22-06",45.2]